Organisation Name,Organisation Code,Organisational Unit,Service Category Label,Procurement Category,Supplier Name,Supplier Other ID,Payment Date,Transaction Number,Amount (�),Purpose
Eden District Council,http://opendatacommunities.org/id/district-council/eden,Commercial Services Manager,Museum,Supplies general,JESSICA MILLS,MIL035,07/07/2017,158844,1055,WATERCOLOURS/SKETCHES
Eden District Council,http://opendatacommunities.org/id/district-council/eden,Technical Services Manager,Administrative Buildings,Electricity,NPOWER LTD,NPO001,07/07/2017,157413,-797.77,CREDIT MANSION HOUSE 01.12.16-03.01.17
Eden District Council,http://opendatacommunities.org/id/district-council/eden,Technical Services Manager,Administrative Buildings,Electricity,NPOWER LTD,NPO001,07/07/2017,157414,828.73,MANSION HOUSE 01.12.16-03.01.17
Eden District Council,http://opendatacommunities.org/id/district-council/eden,Commercial Services Manager,Museum,Electricity,NPOWER LTD,NPO001,07/07/2017,157415,-768.15,TIC PENRITH03.02.17-31.03.17
Eden District Council,http://opendatacommunities.org/id/district-council/eden,Commercial Services Manager,Museum,Electricity,NPOWER LTD,NPO001,07/07/2017,157416,730.94,TIC PENRITH03.02.17-31.03.17
Eden District Council,http://opendatacommunities.org/id/district-council/eden,Technical Services Manager,Administrative Buildings,Electricity,NPOWER LTD,NPO001,07/07/2017,157417,-1090.62,CREDIT TOWN HALL March 17
Eden District Council,http://opendatacommunities.org/id/district-council/eden,Technical Services Manager,Administrative Buildings,Electricity,NPOWER LTD,NPO001,07/07/2017,157423,811.74,TOEN HALL  MARCH 2017
Eden District Council,http://opendatacommunities.org/id/district-council/eden,Director of Finance,Flood Dec 2015,Grants and contributions,Redacted Information,HAN009,07/07/2017,158824,5000,PLFRGRANT EDC16088
Eden District Council,http://opendatacommunities.org/id/district-council/eden,Director of Finance,Flood Dec 2015,Grants and contributions,Redacted Information,HAR074,07/07/2017,158832,5000,PLFRGRANT EDC16168
Eden District Council,http://opendatacommunities.org/id/district-council/eden,Technical Services Manager,Administrative Buildings,Electricity,NPOWER LTD,NPO001,07/07/2017,158662,713.48,MANSION HOUSE 1/5 - 31/5/17
Eden District Council,http://opendatacommunities.org/id/district-council/eden,Technical Services Manager,Administrative Buildings,Electricity,NPOWER LTD,NPO001,07/07/2017,158665,692.31,MANSION HOUSE 01/04 - 30/04/17
Eden District Council,http://opendatacommunities.org/id/district-council/eden,Technical Services Manager,Administrative Buildings,Electricity,NPOWER LTD,NPO001,07/07/2017,158700,1036.78,TOWN HALL 01/04 - 30/04/17
Eden District Council,http://opendatacommunities.org/id/district-council/eden,Technical Services Manager,Administrative Buildings,Electricity,NPOWER LTD,NPO001,07/07/2017,158701,1023.27,TOWN HALL 0105 - 31/05/17
Eden District Council,http://opendatacommunities.org/id/district-council/eden,Legal Services Manager,Holding Accounts,Balance Sheet entry BS,PRINT IMAGE NETWORK LTD,PRI011,07/07/2017,158330,7053.81,2017 GENERAL ELECTIONL FLEXI VOTE PACKS
Eden District Council,http://opendatacommunities.org/id/district-council/eden,Legal Services Manager,Crime & Disorder Reduction Partnership,Grants and contributions,PRO-TECT UK SECURITY & TRAINING LTD,PRO005,07/07/2017,158514,1080,DOOR SUPERVISOR 3 DAYS
Eden District Council,http://opendatacommunities.org/id/district-council/eden,Legal Services Manager,Crime & Disorder Reduction Partnership,Grants and contributions,PRO-TECT UK SECURITY & TRAINING LTD,PRO005,07/07/2017,158515,769.5,DOOR SUPERVISOR/STEWARD
Eden District Council,http://opendatacommunities.org/id/district-council/eden,Legal Services Manager,Crime & Disorder Reduction Partnership,Grants and contributions,PRO-TECT UK SECURITY & TRAINING LTD,PRO005,07/07/2017,158516,1440,DOOR SUPERVISOR
Eden District Council,http://opendatacommunities.org/id/district-council/eden,Legal Services Manager,Crime & Disorder Reduction Partnership,Grants and contributions,PRO-TECT UK SECURITY & TRAINING LTD,PRO005,07/07/2017,158517,2052,DOOR SUPERVISOR/STEWARD
Eden District Council,http://opendatacommunities.org/id/district-council/eden,Legal Services Manager,Crime & Disorder Reduction Partnership,Grants and contributions,PRO-TECT UK SECURITY & TRAINING LTD,PRO005,07/07/2017,158518,1080,DOOR SUPERVISOR
Eden District Council,http://opendatacommunities.org/id/district-council/eden,Legal Services Manager,Crime & Disorder Reduction Partnership,Grants and contributions,PRO-TECT UK SECURITY & TRAINING LTD,PRO005,07/07/2017,158519,2592,DOOR SUPERVISOR/STEWARD
Eden District Council,http://opendatacommunities.org/id/district-council/eden,Legal Services Manager,Crime & Disorder Reduction Partnership,Grants and contributions,PRO-TECT UK SECURITY & TRAINING LTD,PRO005,07/07/2017,158520,1080,DOOR SUPERVISOR
Eden District Council,http://opendatacommunities.org/id/district-council/eden,Legal Services Manager,Crime & Disorder Reduction Partnership,Grants and contributions,PRO-TECT UK SECURITY & TRAINING LTD,PRO005,07/07/2017,158521,1605.76,DOOR SUPERVISOR/STEWARD
Eden District Council,http://opendatacommunities.org/id/district-council/eden,Director of Finance,Flood Dec 2015,Grants and contributions,Redacted Information,WIL084,07/07/2017,158710,3641.15,PLFRG EDC16429
Eden District Council,http://opendatacommunities.org/id/district-council/eden,Director of Finance,Flood Dec 2015,Grants and contributions,Redacted Information,SMI037,07/07/2017,158720,3210,PLFRGRANT EDC16430
Eden District Council,http://opendatacommunities.org/id/district-council/eden,Commercial Services Manager,Economic Development and Promotion,Seminars,SHN TRAINING SERVICES LTD,SHN001,07/07/2017,158723,540,9 DELEGATES 1ST AID AT WORK
Eden District Council,http://opendatacommunities.org/id/district-council/eden,Director of Finance,Flood Dec 2015,Grants and contributions,Redacted Information,SIM019,07/07/2017,158725,5000,PLFRGRANT EDC16388
Eden District Council,http://opendatacommunities.org/id/district-council/eden,Technical Services Manager,Public Conveniences,Water charges � metered,WATER PLUS,UNI008,07/07/2017,158730,893.22,PCS  BLUEBELL 30.11.16-27.02.17
Eden District Council,http://opendatacommunities.org/id/district-council/eden,Technical Services Manager,Refuse Collection,Refuse Contract Dayworks,AMEY PLC,TFE001,07/07/2017,158736,1335.84,RC51
Eden District Council,http://opendatacommunities.org/id/district-council/eden,Technical Services Manager,Eden Leisure Centre & Appleby Swimming P,Building Maintenance - Leisure,GREENWICH LEISURE LTD,NCL001,07/07/2017,157992,1226,SKATE PARK LIGHTS/INSTALL 2 FLOODLIGHTS
Eden District Council,http://opendatacommunities.org/id/district-council/eden,Technical Services Manager,Administrative Buildings,Planned Maintenance,AMEY PLC,TFE001,07/07/2017,158237,907.99,REPAIR DISPLAY BOARDS
Eden District Council,http://opendatacommunities.org/id/district-council/eden,Commercial Services Manager,Penrith TIC Trading Account,Publications,J R NICHOLLS,NIC018,07/07/2017,158551,773.3,BOOKS/MAGNETS
Eden District Council,http://opendatacommunities.org/id/district-council/eden,Technical Services Manager,Administrative Buildings,Planned Maintenance,AMEY PLC,TFE001,07/07/2017,158658,617.8,REPLACE FLUSH BUTTONS
Eden District Council,http://opendatacommunities.org/id/district-council/eden,Technical Services Manager,Gilwilly Extension Eden Business park,Building works,ELECTRICITY NORTH WEST LTD,ELE005,07/07/2017,158738,1215,LAMP CONNECTION HARKNESS RD
Eden District Council,http://opendatacommunities.org/id/district-council/eden,Technical Services Manager,Gilwilly Extension Eden Business park,Building works,ELECTRICITY NORTH WEST LTD,ELE005,07/07/2017,158739,1009,LAMP RECONNECT EDEN BUSINESS PK
Eden District Council,http://opendatacommunities.org/id/district-council/eden,Technical Services Manager,Gilwilly Extension Eden Business park,Building works,ELECTRICITY NORTH WEST LTD,ELE005,07/07/2017,158742,1215,LAMP CONNECTION COWPER RD
Eden District Council,http://opendatacommunities.org/id/district-council/eden,Legal Services Manager,Committee and Member Costs,Software � maintenance,MODERN MINDSET LTD,MOD003,14/07/2017,158869,7010,ANNUAL SUBSCRIPTION
Eden District Council,http://opendatacommunities.org/id/district-council/eden,Information Technology Manager,Information Technology,Computer equipment,IT PROFESSIONAL SERVICES LTD,ITP001,14/07/2017,158896,5728,KINGSTON RAM MODULE
Eden District Council,http://opendatacommunities.org/id/district-council/eden,Technical Services Manager,Parks and Open Spaces,Professional fees,DINSDALE CONTRACTS LTD,DIN005,14/07/2017,158933,1499.9,FOOTPATH AT BEACONSIDE
Eden District Council,http://opendatacommunities.org/id/district-council/eden,Legal Services Manager,Community Development & Engagement,Grants and contributions,INSIGHT DIRECT (UK) LTD,INS014,14/07/2017,158988,4349.85,15 PROJECTORS
Eden District Council,http://opendatacommunities.org/id/district-council/eden,Technical Services Manager,Parks and Open Spaces,GM External Contractors,PLAYDALE PLAYGROUNDS LTD,PLA007,14/07/2017,158535,1008.14,TEAM SWING SEAT REPAIR KIT
Eden District Council,http://opendatacommunities.org/id/district-council/eden,Technical Services Manager,Parks and Open Spaces,Flood Damage,IAN CANNON LTD,CAN004,14/07/2017,158748,6120,RE FIX BENCHES/PLINTHS/PATHS
Eden District Council,http://opendatacommunities.org/id/district-council/eden,Planning Services,Planning Services,Furniture � office,HEATONS OFFICE SOLUTIONS LTD,LAK004,14/07/2017,158922,2152.15,STATIONERY/PAPER /FURNITURE
Eden District Council,http://opendatacommunities.org/id/district-council/eden,Commercial Services Manager,Tourism Promotion,Grants and contributions,CUMBRIA TOURISM,CUM066,14/07/2017,158327,2545,STEAM REPORT 2016
Eden District Council,http://opendatacommunities.org/id/district-council/eden,None,Corporate Costs,Software � maintenance,CIVICA UK LTD,CIV002,14/07/2017,158352,11685.38,LICENCE SUPPORT/MAINTENANCE 2017/18
Eden District Council,http://opendatacommunities.org/id/district-council/eden,Environmental Services,1996 Mandatory Renovation Grants,Capital grants,C W COX & SONS (KENDAL)  LTD,COX001,14/07/2017,158647,10596.03,160025/FINAL PAY 
Eden District Council,http://opendatacommunities.org/id/district-council/eden,Information Technology Manager,Information Technology,IT Contracts & Maintenance,MLL TELECOM LTD,MLL001,14/07/2017,158657,3705.75,INTERNET CIRCUIT/LINK
Eden District Council,http://opendatacommunities.org/id/district-council/eden,Revenue/Benefits Manager,Universal Credit,Supplies general,CIVICA UK LTD,CIV002,14/07/2017,158727,3156.25,ON DEMAND RESOURCE PROCESSING
Eden District Council,http://opendatacommunities.org/id/district-council/eden,Planning Services,Development Control & Enforcement,Charges for services,MR L SHARP (ABAgri LTD),SHA032,14/07/2017,158817,3465,PART REFUND PLAN APP 17/0463
Eden District Council,http://opendatacommunities.org/id/district-council/eden,Legal Services Manager,Register of Electors,Training Expenses,ASSOCIATION OF ELECTORAL ADMINISTRATION,ASS003,14/07/2017,158819,801,3 COURSES 
Eden District Council,http://opendatacommunities.org/id/district-council/eden,Legal Services Manager,Elections,Postages,PRINT IMAGE FACILITIES LLP,PRI014,14/07/2017,158822,631.12,ALSTON  MOOR BY ELECTION POLL CARD POST
Eden District Council,http://opendatacommunities.org/id/district-council/eden,Information Technology Manager,Information Technology,Printers Contract,Konica Minolta Business Solutions UK Limited,KON003,14/07/2017,158836,2732.75,PRINT COPIES
Eden District Council,http://opendatacommunities.org/id/district-council/eden,Revenue/Benefits Manager,Revenue & Benefits,Postages,ROYAL MAIL NW,ROY001,14/07/2017,158879,1333.31,POST 07.06.17-27.06.17
Eden District Council,http://opendatacommunities.org/id/district-council/eden,Revenue/Benefits Manager,Revenue & Benefits,Salaries,SOUTH LAKELAND DISTRICT COUNCIL,SOU006,14/07/2017,158884,3367.35,SHARED APPEALS OFFICER RECHARGE JAN/MAR
Eden District Council,http://opendatacommunities.org/id/district-council/eden,Environmental Services,1996 Mandatory Renovation Grants,Capital grants,C W COX & SONS (KENDAL)  LTD,COX001,14/07/2017,158912,4268,FINAL PAYMENT  PENRITH
Eden District Council,http://opendatacommunities.org/id/district-council/eden,Information Technology Manager,Information Technology,Government Connect,VODAFONE LTD,VOD003,14/07/2017,158915,2897.93,DATA SERVICES
Eden District Council,http://opendatacommunities.org/id/district-council/eden,Environmental Services,1996 Mandatory Renovation Grants,Capital grants,PPM LTD,PPM001,14/07/2017,158936,3311.94,160052/
Eden District Council,http://opendatacommunities.org/id/district-council/eden,Commercial Services Manager,Economic Development and Promotion,Business Engagement,CUMBRIAN NEWSPAPERS LTD,CUM024,21/07/2017,158997,700,JULY IN CUMBRIA
Eden District Council,http://opendatacommunities.org/id/district-council/eden,Technical Services Manager,Public Conveniences,Building Maintenance,WALLGATE LIMITED,WAL040,21/07/2017,159026,876,SERVICE RENEWAL
Eden District Council,http://opendatacommunities.org/id/district-council/eden,Human Resources Manager,Central Expenses,Advertising,REDACTIVE PUBLISHING LIMITED,RED006,21/07/2017,159046,750,JOB LISTING & LOGO
Eden District Council,http://opendatacommunities.org/id/district-council/eden,Environmental Services,Appleby Fair,Transit Sites,TEESDALE EVENT AND SITE SERVICES,TEE001,21/07/2017,158881,3071,TOILET HIRE/SERVIUCE 30/05-19/06/17
Eden District Council,http://opendatacommunities.org/id/district-council/eden,Commercial Services Manager,Economic Development and Promotion,Professional fees,WALTON GOODLAND LTD,WAL008,21/07/2017,158339,2823.4,RATE FOR SURVEYOR MAY 17
Eden District Council,http://opendatacommunities.org/id/district-council/eden,Environmental Services,Pest Control,Pest Control,RENTOKIL INITIAL PEST CONTROL,REN009,21/07/2017,158411,891.54,PESTS MISCELLANEOUS
Eden District Council,http://opendatacommunities.org/id/district-council/eden,Environmental Services,Community Wardens,Dog Contract O.O.H retainer,AMEY PLC,TFE001,21/07/2017,158508,879.08,KENNELLING/STRAY DOGS
Eden District Council,http://opendatacommunities.org/id/district-council/eden,Environmental Services,Community Wardens,Dog Contract O.O.H retainer,AMEY PLC,TFE001,21/07/2017,158509,879.08,KENNELLING/STRAY DOGS JUNE 17
Eden District Council,http://opendatacommunities.org/id/district-council/eden,Information Technology Manager,Information Technology,IT Contracts & Maintenance,SOUTH LAKELAND DISTRICT COUNCIL,SOU006,21/07/2017,158661,6825,SETUP & TRAINIING FOR CWSI
Eden District Council,http://opendatacommunities.org/id/district-council/eden,Commercial Services Manager,Economic Development and Promotion,Professional fees,PURCELL MILLER TRITTON LLP,PUR010,21/07/2017,158886,7762.5,RE: HIGH MILL ALSTON
Eden District Council,http://opendatacommunities.org/id/district-council/eden,Director of Finance,Flood Dec 2015,Grants and contributions,Redacted Information,BOU008,21/07/2017,158913,2173.57,PLFRGRANT EDC16435
Eden District Council,http://opendatacommunities.org/id/district-council/eden,Information Technology Manager,Information Technology,IT Contracts & Maintenance,SOUTH LAKELAND DISTRICT COUNCIL,SOU006,21/07/2017,158925,-6825,CREDIT FOR INV 0000522473
Eden District Council,http://opendatacommunities.org/id/district-council/eden,Technical Services Manager,Public Conveniences,Water charges � metered,WATER PLUS,UNI008,21/07/2017,158926,875.73,BLUEBELL LANE PCS 28/2 - 27/6/17
Eden District Council,http://opendatacommunities.org/id/district-council/eden,Technical Services Manager,Footway Lighting,Electricity,E.ON UK PLC,EON001,21/07/2017,158940,6159.06,STREET LIGHTING
Eden District Council,http://opendatacommunities.org/id/district-council/eden,Corporate Services Manager,Central Expenses,Postages,NEOPOST LIMITED,NEO001,21/07/2017,158976,2000,FRANKING REFILL
Eden District Council,http://opendatacommunities.org/id/district-council/eden,Technical Services Manager,Administrative Buildings,Electricity,NPOWER LTD,NPO001,21/07/2017,158985,678.72,MANSION HOUSE JUNE 17
Eden District Council,http://opendatacommunities.org/id/district-council/eden,Director of Finance,Flood Dec 2015,Grants and contributions,Redacted Information,HUN015,21/07/2017,158989,4130,PLFRG EDC16304
Eden District Council,http://opendatacommunities.org/id/district-council/eden,Director of Finance,Flood Dec 2015,Grants and contributions,Redacted Information,MUR016,21/07/2017,158990,4130,PLFRG EDC16303
Eden District Council,http://opendatacommunities.org/id/district-council/eden,Director of Finance,Flood Dec 2015,Grants and contributions,Redacted Information,COO023,21/07/2017,158991,2367.98,PLFRG EDC16441
Eden District Council,http://opendatacommunities.org/id/district-council/eden,Information Technology Manager,Information Technology,IT Contracts & Maintenance,SOUTH LAKELAND DISTRICT COUNCIL,SOU006,21/07/2017,158993,6825,SETUP & TRAINING FOR GAZETTEER
Eden District Council,http://opendatacommunities.org/id/district-council/eden,Human Resources Manager,Central Expenses,Advertising,CUMBRIAN NEWSPAPERS LTD,CUM024,21/07/2017,158998,1098,ASSISTANT DIRECTOR FINANCIAL SERVICES AD
Eden District Council,http://opendatacommunities.org/id/district-council/eden,Human Resources Manager,Human Resources,"Books, publications",CUMBRIA COUNTY COUNCIL,CCC002,21/07/2017,159028,1075.2,XPERT HR LICENSES 2017/2018
Eden District Council,http://opendatacommunities.org/id/district-council/eden,Director of Finance,Flood Dec 2015,Grants and contributions,Redacted Information,WIL084,21/07/2017,159036,5000,PLFRG EDC 16428
Eden District Council,http://opendatacommunities.org/id/district-council/eden,Commercial Services Manager,Commercial Services,Child Care Voucher Scheme,BUSY BEES CHILDCARE VOUCHERS,BUS004,20/07/2017,159182,1385,CHILDCARE VOUCHERS 20/07/17 DDR
Eden District Council,http://opendatacommunities.org/id/district-council/eden,Environmental Services,1996 Discretionary Renovation Grants,Decent Homes Grants,G L CARRICK ROFFING CONTRACTOR,CAR035,21/07/2017,159008,5375.2,160053/
Eden District Council,http://opendatacommunities.org/id/district-council/eden,Technical Services Manager,Central Expenses,Safety training  205800 only,LAKES TRAINING SOLUTIONS LTD,LAK035,28/07/2017,159162,530,AGGRESSION & CONFLICT TRAINING
Eden District Council,http://opendatacommunities.org/id/district-council/eden,Technical Services Manager,Gilwilly Extension Eden Business park,Building works,TWEDDELL & SLATER CONSULTING ENGINEERS,TWE002,28/07/2017,159164,675,PROFESSIONAL SERVICES EDEN BUSINESS PARK
Eden District Council,http://opendatacommunities.org/id/district-council/eden,Commercial Services Manager,Community Development & Engagement,Community engagement development,DESIGNWORKS LTD,DES001,28/07/2017,159196,828,SWIMMING POOL LEAFLETS
Eden District Council,http://opendatacommunities.org/id/district-council/eden,Legal Services Manager,Community Development & Engagement,Grants and contributions,INSIGHT DIRECT (UK) LTD,INS014,28/07/2017,159209,4059.86,PROJECTORS
Eden District Council,http://opendatacommunities.org/id/district-council/eden,Technical Services Manager,Old London Rd Depot Redevelopment,Building works,AMEY PLC,TFE001,28/07/2017,159037,31142.66,THE DEPOT PENRITH
Eden District Council,http://opendatacommunities.org/id/district-council/eden,Technical Services Manager,Cap Footway Lighting,Building works,AMEY PLC,TFE001,28/07/2017,159177,553.91,INSTALLATION COLUMNS
Eden District Council,http://opendatacommunities.org/id/district-council/eden,Legal Services Manager,Legal Services,"Books, publications",SEFTON COUNCIL,SEF001,28/07/2017,158714,500,ANNUAL SUBSCRIPTION 17/18
Eden District Council,http://opendatacommunities.org/id/district-council/eden,Environmental Services,Appleby Fair,Building Cleaning (contract),AMEY PLC,TFE001,28/07/2017,158733,17679.73,2017/18_BC_03
Eden District Council,http://opendatacommunities.org/id/district-council/eden,Technical Services Manager,Public Conveniences,Window cleaning,AMEY PLC,TFE001,28/07/2017,158734,15160.1,2017/18_BC_02
Eden District Council,http://opendatacommunities.org/id/district-council/eden,Technical Services Manager,Public Conveniences,Window cleaning,AMEY PLC,TFE001,28/07/2017,158735,15160.1,2017_BC_01
Eden District Council,http://opendatacommunities.org/id/district-council/eden,Environmental Services,Appleby Fair,Abnormal maintenance,AMEY PLC,TFE001,28/07/2017,158848,1673.3,ST MICHAELS CHURCH APPLEBY
Eden District Council,http://opendatacommunities.org/id/district-council/eden,Technical Services Manager,Vehicle Parking Off Street,Cash collection,CARLISLE CITY COUNCIL,CAR015,28/07/2017,158882,3796,EDEN OFF STREET CASH COLLECTION APR/JUNE
Eden District Council,http://opendatacommunities.org/id/district-council/eden,Technical Services Manager,Administrative Buildings,Rent,R BRENNAND ENGINEERING LIMITED,BRE004,28/07/2017,158894,1744.98,RENT JUL-SEPT 17 + MAINT
Eden District Council,http://opendatacommunities.org/id/district-council/eden,Legal Services Manager,Register of Electors,Equipment � purchase,HALAROSE LIMITED,HAL013,28/07/2017,158898,726,SCANNER WARRANTY DELIVERY
Eden District Council,http://opendatacommunities.org/id/district-council/eden,Environmental Services,Homelessness,Grants and contributions,EDEN HOUSING ASSOCIATION LTD,EDE001,28/07/2017,158919,2550,HOMELESSNESS
Eden District Council,http://opendatacommunities.org/id/district-council/eden,Legal Services Manager,Holding Accounts,Balance Sheet entry BS,ROYAL MAIL NW,ROY001,28/07/2017,158935,2370.6,RESPONSE PLUS SERVICE
Eden District Council,http://opendatacommunities.org/id/district-council/eden,Technical Services Manager,Central Expenses,Other charges for services,ROCKSURE SYSTEMS LTD,ROC005,28/07/2017,158939,521.1,PEOPLESAFE SERVICES
Eden District Council,http://opendatacommunities.org/id/district-council/eden,Environmental Services,Homelessness,Hire of premises,EDEN HOUSING ASSOCIATION LTD,EDE001,28/07/2017,158986,3407.53,HOMELESSNESS RECHARGE 03.04.17-02.07.17
Eden District Council,http://opendatacommunities.org/id/district-council/eden,Legal Services Manager,Committee and Member Costs,Member expenses,GATESTRAVEL,GAT004,28/07/2017,158987,1481.5,RAIL TICKETS/ACCOMMODATION
Eden District Council,http://opendatacommunities.org/id/district-council/eden,Environmental Services,Housing Delivery,Professional fees,WSP UK LTD,WSP001,28/07/2017,158992,1800,EDEN HEAT MAPPING SCHEME
Eden District Council,http://opendatacommunities.org/id/district-council/eden,Information Technology Manager,Information Technology,Printers Contract,Konica Minolta Business Solutions UK Limited,KON003,28/07/2017,159000,4164.42,PRINTERS 01.07.17 - 30.09.17
Eden District Council,http://opendatacommunities.org/id/district-council/eden,Environmental Services,1996 Mandatory Renovation Grants,Capital grants,PPM LTD,PPM001,28/07/2017,159009,3638.59,150027/
Eden District Council,http://opendatacommunities.org/id/district-council/eden,Revenue/Benefits Manager,Penrith BID Cash,Contribution by EDC,PENRITH B I D,PEN063,28/07/2017,159010,8000,JUNE 17 MONIES
Eden District Council,http://opendatacommunities.org/id/district-council/eden,Environmental Services,1996 Discretionary Renovation Grants,Decent Homes Grants,AMEY PLC,TFE001,28/07/2017,159012,698.13,130029/
Eden District Council,http://opendatacommunities.org/id/district-council/eden,Environmental Services,1996 Mandatory Renovation Grants,Capital grants,JOHNSTON & WRIGHT CHARTERED ARCHITECTS,WRI001,28/07/2017,159014,1260,160035/
Eden District Council,http://opendatacommunities.org/id/district-council/eden,Environmental Services,1996 Mandatory Renovation Grants,Capital grants,JOHNSTON & WRIGHT CHARTERED ARCHITECTS,WRI001,28/07/2017,159015,2340,150057/1
Eden District Council,http://opendatacommunities.org/id/district-council/eden,Legal Services Manager,Holding Accounts,Balance Sheet entry BS,DYNAMIC JOINERY LTD,DYN004,28/07/2017,159042,3750,COLLECTION OF BALLOT BOXES
Eden District Council,http://opendatacommunities.org/id/district-council/eden,Legal Services Manager,Holding Accounts,Balance Sheet entry BS,GREENWICH LEISURE LTD,NCL001,28/07/2017,159045,2258.47,HIRE OF HALL FOR GENERAL ELECTION
Eden District Council,http://opendatacommunities.org/id/district-council/eden,Technical Services Manager,Recycling,Garden Waste Skips,CUMBRIA WASTE RECYCLING LTD,CUM022,28/07/2017,159047,2940,GREEN SKIP COLLECTION
Eden District Council,http://opendatacommunities.org/id/district-council/eden,Technical Services Manager,Recycling,Recycling - Bag & Box,CUMBRIA WASTE RECYCLING LTD,CUM022,28/07/2017,159055,19838.72,GB-03-17/18
Eden District Council,http://opendatacommunities.org/id/district-council/eden,Technical Services Manager,Recycling,Recycling - Garden Waste,CUMBRIA WASTE RECYCLING LTD,CUM022,28/07/2017,159056,22165.67,GW-03-17/18
Eden District Council,http://opendatacommunities.org/id/district-council/eden,Environmental Services,1996 Mandatory Renovation Grants,Capital grants,J RICHARDSON & SON,RIC004,28/07/2017,159057,2088,160056/
Eden District Council,http://opendatacommunities.org/id/district-council/eden,Technical Services Manager,Administrative Buildings,Electricity,NPOWER LTD,NPO001,28/07/2017,159133,992.64,TOWN HALL MAY/JUN 17
Eden District Council,http://opendatacommunities.org/id/district-council/eden,Environmental Services,1996 Mandatory Renovation Grants,Capital grants,DOLPHIN MOBILITY YORKSHIRE & CUMBRIA LTD,DOL001,28/07/2017,159138,2684.55,FINAL PAYMENT MAINS SIDE CA17 4PR
Eden District Council,http://opendatacommunities.org/id/district-council/eden,Technical Services Manager,Community Development & Engagement,Rent,ALSTON TOWN HALL TRUSTEES,ALS003,28/07/2017,159143,900,RENT APR/MAY/JUN 17
Eden District Council,http://opendatacommunities.org/id/district-council/eden,Revenue/Benefits Manager,Revenue & Benefits,Professional fees,ACS CONSULTANCY & TRAINING SUPPORT,ACS001,28/07/2017,159144,650,LSCT UPDATE SERVICE 2018 SCHEME EDEN
Eden District Council,http://opendatacommunities.org/id/district-council/eden,Technical Services Manager,Administrative Buildings,Rental/Maintenance of Security System,WESTMORLAND FIRE & SECURITY,WES001,28/07/2017,159145,551,MAINT/MONITORING CHARGE 17/18
Eden District Council,http://opendatacommunities.org/id/district-council/eden,Environmental Services,1996 Mandatory Renovation Grants,Capital grants,KJS ACCESS SOLUTIONS,KJS001,28/07/2017,159151,3327.97,FINAL PAYMENT 
Eden District Council,http://opendatacommunities.org/id/district-council/eden,Human Resources Manager,Staff Development,Training Expenses,ARVATO GOVERNMENT SERVICES LTD,ARV001,28/07/2017,159152,800,COUNCIL TAX HOW SYSTEM WORKS
Eden District Council,http://opendatacommunities.org/id/district-council/eden,Technical Services Manager,Land Charges,Professional fees,CUMBRIA COUNTY COUNCIL,CCC002,28/07/2017,159153,1034,APR/MAY/JUN COMMONS SEARCHES
Eden District Council,http://opendatacommunities.org/id/district-council/eden,Environmental Services,1996 Mandatory Renovation Grants,Capital grants,HERITAGE PRINT DRIVEWAYS LTD,HER007,28/07/2017,159168,1950,FINAL PAYMENT 
Eden District Council,http://opendatacommunities.org/id/district-council/eden,Human Resources Manager,Central Expenses,Advertising,GUARDIAN NEWS & MEDIA LTD,GUA002,12/07/2017,159281,750,JI'ANSON BARCLAYCARD - JUN PAID JULY
Eden District Council,http://opendatacommunities.org/id/district-council/eden,Commercial Services Manager,Legal Services,Purchase of assets,HMRC,HMC001,12/07/2017,169000,1400,STAMP DUTY
